Cogmind - Beta 15 @@@ ROGUE MODE // 2025.08.07 @ 20:38:44 Player: cupboard Result: Destroyed by G-47 Trooper with Particle Gun Performance ------------- Evolutions (0) 0 Regions Visited (2) 400 Robots Destroyed (17) 85 Value Destroyed (600) 600 Prototype IDs (0) 0 Alien Tech Used (0) 0 Bonus (0) 0 TOTAL SCORE: 1085 Bonus ------- None Cogmind --------- Core Integrity 0/250 Matter 274/300 Energy 200/200 System Corruption 0% Temperature Cool (9) Movement Walking (120) Location -10/Subcaves Parts ------- > --- POWER (1) -------- Subdweller Power Source > --- PROPULSION (2) --- Myomer Leg Myomer Leg > --- UTILITY (2) ------ Small Storage Unit Seismic Detector > --- WEAPON (2) ------- Subdweller Laser Assault Rifle > --- INVENTORY (8) ---- Subdweller Optics Terrain Scanner Phase Shifter Light Assault Rifle Light Assault Rifle Subdweller Machine Gun Battle Cannon Peak State ------------ > --- POWER ------------ Subdweller Power Source > --- PROPULSION ------- Myomer Leg Myomer Leg > --- UTILITY ---------- Small Storage Unit Seismic Detector > --- WEAPON ----------- Subdweller Laser Assault Rifle > --- INVENTORY -------- Subdweller Optics Terrain Scanner Phase Shifter Light Assault Rifle Light Assault Rifle Subdweller Machine Gun Battle Cannon [Rating: 22] Favorites ----------- Power Ion Engine Engine Ion Engine Propulsion Aluminum Leg Leg Aluminum Leg Utility Small Storage Unit Device Structural Scanner Storage Small Storage Unit Weapon Assault Rifle Energy Gun Subdweller Laser Ballistic Gun Assault Rifle Launcher Grenade Launcher Special Weapon Mining Laser Build | -11 -10 -10 ------- Run | Yrd Mat Sub Slots Evolved . | . . . Power . | . . . Propulsion . | . . . Utility . | . . . Weapon . | . . . Parts Attached 18 | 6 3 9 Power 4 | 1 . 3 Engine 4 | 1 . 3 Core . | . . . Reactor . | . . . Propulsion 5 | 2 1 2 Treads . | . . . Leg 5 | 2 1 2 Wheel . | . . . Hover . | . . . Flight . | . . . Utility 3 | 1 1 1 Device 2 | . 1 1 Storage 1 | 1 . . Processor . | . . . Hackware . | . . . Protection . | . . . Artifact . | . . . Weapon 6 | 2 1 3 Energy Gun 1 | . . 1 Energy Cannon . | . . . Ballistic Gun 3 | 2 1 . Ballistic Cannon . | . . . Launcher 1 | . . 1 Special Weapon 1 | . . 1 Impact Weapon . | . . . Slashing Weapon . | . . . Piercing Weapon . | . . . Special Melee Weapon . | . . . Unidentified Prototypes . | . . . Parts Lost 3 | . . 3 Power 2 | . . 2 Propulsion . | . . . Utility . | . . . Weapon 1 | . . 1 Highest Loss Streak 2 | . . 2 To Critical Strikes . | . . . Average Backups 6 | 2 6 7 Power 1 | . 1 1 Propulsion 2 | 1 3 1 Utility 1 | . . 2 Weapon 1 | . . 2 Tool/Special . | . . . Unused Backups 11 | . 2 9 Power . | . . . Propulsion 4 | . 2 2 Utility 4 | . . 4 Weapon 3 | . . 3 Tool/Special . | . . . Average Slot Usage (%) 95 | . 88 99 Engine 13 | . 14 13 Leg 27 | . 28 27 Device 10 | . 3 14 Storage 14 | . 14 14 Energy Gun 3 | . . 5 Ballistic Gun 23 | . 27 21 Peak Build Rating 22 | 6 7 22 Average Rating 10 | 4 6 12 On Entrance 4 | . 6 7 Naked Turns . | . . . Heaviest Build 17 | 13 14 17 Greatest Support 50 | 20 20 50 Greatest Overweight (x) 1 | . . 1 Average Overweight (x) . | . . . Largest Inventory Capacity 8 | 8 8 8 Average Capacity 7 | 7 8 8 Most Carried 8 | 6 8 8 Average Carried 6 | 3 6 7 Final Capacity 8 | 8 8 8 Final Carried 8 | 4 8 7 Class Distribution -------------------- 83% | Mutant 16% | Scavenger-Mutant Dominant Class ---------------- Mutant | -10/Materials Mutant | -10/Subcaves Resources | -11 -10 -10 ----------- Run | Yrd Mat Sub Matter Collected 589 | 217 111 261 Remotely . | . . . Salvage Created 550 | . 166 384 Parts 39 | . 8 31 Haulers Intercepted . | . . . Recyclers Shooed . | . . . Parts Field Recycled . | . . . Retrieved Matter . | . . . Parts Self-Destructed 12 | . . 12 Prevented . | . . . Kills | -11 -10 -10 ------- Run | Yrd Mat Sub Combat Hostiles Destroyed 16 | . 3 13 Guns 11 | . 3 8 AOE 5 | . . 5 Classes Destroyed 4 | . 2 2 Worker 1 | . 1 . Swarmer 1 | . . 1 Grunt 4 | . 3 1 Subdweller 11 | . . 11 Best Kill Streak 8 | . 3 8 Combat Bots Only 8 | . 2 8 Max Kills in Single Turn 3 | . 1 3 Gunslinging . | . . . Exploded 3 | . . 3 Melee . | . . . Uniques/NPCs Destroyed . | . . . Combat | -11 -10 -10 -------- Run | Yrd Mat Sub Hostile Shots Fired 88 | . 22 66 Missed 27 | . 4 23 Hits 61 | . 18 43 Projectile 61 | . 18 43 AOE 1 | . . 1 Critical Strikes 1 | . . 1 Damage Taken 1106 | . 218 888 Core 254 | . 10 244 Absorbed by Shields . | . . . Regen/Repaired (Parts) 86 | . 86 . Core Remaining (%) 100 | 100 . . Volleys Fired 62 | . 18 44 Largest 2 | . 2 2 Hottest 100 | . 40 100 Shots Fired 116 | . 36 80 Gun 105 | . 36 69 Cannon . | . . . Launcher 3 | . . 3 Special 8 | . . 8 Kinetic 88 | . 36 52 Thermal 25 | . . 25 Explosive 3 | . . 3 Electromagnetic . | . . . Robot Hit Streak 12 | . 8 12 Robot Miss Streak 3 | . 2 3 Penetration Max . | . . . Secondary Targets 1 | . . 1 Max Gunslinging Chain 1 | . . 1 Shots Hit Robots 77 | . 27 50 Core Hits 33 | . 8 25 Critical Kills . | . . . Critical Parts Destroyed . | . . . Critical Strikes . | . . . Melee Attacks . | . . . Impact . | . . . Slashing . | . . . Piercing . | . . . Sneak Attacks . | . . . Combat Hostiles . | . . . Follow-up Attacks . | . . . Damage Inflicted 1444 | . 280 1164 Guns 829 | . 280 549 Cannons . | . . . Explosions 615 | . . 615 Melee . | . . . Ramming . | . . . Kinetic 646 | . 280 366 Thermal 183 | . . 183 Explosive 615 | . . 615 Electromagnetic . | . . . Impact . | . . . Slashing . | . . . Piercing . | . . . Highest Corruption . | . . . Average Corruption . | . . . Corruption Purged . | . . . Corruption Blocked . | . . . Overload Shots . | . . . Overflow Damage . | . . . Projectiles . | . . . Explosions . | . . . Melee . | . . . Knockbacks . | . . . Impact . | . . . Kinetic . | . . . Secondary . | . . . Self-Inflicted Damage 32 | . . 32 Shots 2 | . . 2 Rammed . | . . . Targets Rammed . | . . . Kicked . | . . . Crushed . | . . . Highest Temperature 18 | . 18 2 Average Temperature 7 | . 7 1 Received Heat Transfer 288 | . 120 168 Siege Activations . | . . . Martial Activations . | . . . Shielding Activations . | . . . Robots Disrupted . | . . . Combat Hostiles . | . . . Robots Corrupted . | . . . Combat Hostiles . | . . . Parts Fried . | . . . Impact Corruptions . | . . . Robots Melted . | . . . Combat Hostiles . | . . . Parts Melted . | . . . Heat Transferred 225 | . . 225 Parts Sabotaged . | . . . Parts Stolen . | . . . Parts Stripped . | . . . Power Chain Reactions . | . . . Alert | -11 -10 -10 ------- Run | Yrd Mat Sub Maximum Alert Level . | . . . Low Security (%) 100 | 100 100 . Level 1 . | . . . Level 2 . | . . . Level 3 . | . . . Level 4 . | . . . Level 5 . | . . . High Security . | . . . Max Security . | . . . Peak Influence 45 | . 45 . Initial . | . . . Average 7 | . 9 . Influence Increases 115 | . 75 40 Destroy 0b10 Robot/C 100 | . 60 40 Destroy 0b10 Robot/NC 5 | . 5 . Destroy Leader 10 | . 10 . Influence Decreases 95 | . 75 20 Time Decay 95 | . 75 20 Squads Dispatched . | . . . Investigation . | . . . Extermination . | . . . Reinforcement . | . . . Assault . | . . . Garrison . | . . . Intercept . | . . . Searches Triggered . | . . . Construction Impeded . | . . . Haulers Reinforced . | . . . Active Scanning Responses . | . . . Cargo Convoy Interrupts . | . . . Stealth | -11 -10 -10 --------- Run | Yrd Mat Sub Distress Signals 2 | . 2 . Communications Jammed . | . . . Distress Signals . | . . . Times Spotted 28 | . 9 19 Peak Tracking Total 7 | . 3 7 Tactical Retreats . | . . . Traps | -11 -10 -10 ------- Run | Yrd Mat Sub Traps Triggered . | . . . Indirectly . | . . . Trap Hack Attempts . | . . . Triggered . | . . . Disarmed . | . . . Reprogrammed . | . . . Reused . | . . . Traps Extracted . | . . . Installed . | . . . Triggered . | . . . Machines | -11 -10 -10 ---------- Run | Yrd Mat Sub Machines Disabled . | . . . Max in Single Turn . | . . . Machines Repaired . | . . . Machines Dismantled . | . . . Machines Sabotaged . | . . . Overloaded Fab Kills . | . . . Hacking | -11 -10 -10 --------- Run | Yrd Mat Sub Machines Accessed 2 | . 2 . Terminals 1 | . 1 . Fabricators . | . . . Repair Stations 1 | . 1 . Recycling Units . | . . . Scanalyzers . | . . . Garrison Access . | . . . Total Hacks 11 | . 11 . Successful 8 | . 8 . Failed 3 | . 3 . Catastrophic . | . . . Database Lockouts . | . . . Manual . | . . . Terminals 7 | . 7 . Fabricators . | . . . Repair Stations 4 | . 4 . Recycling Units . | . . . Scanalyzers . | . . . Garrison Access . | . . . Terminal Hacks 6 | . 6 . Record 2 | . 2 . Terminal Index 1 | . 1 . Alert Level 1 | . 1 . Maintenance Status 1 | . 1 . Investigation Status 1 | . 1 . Fabricator Hacks . | . . . Repair Station Hacks 2 | . 2 . Scan Component 1 | . 1 . Repair 1 | . 1 . Recycling Unit Hacks . | . . . Scanalyzer . | . . . Garrison Access Hacks . | . . . Unauthorized Hacks . | . . . Terminals . | . . . Fabricators . | . . . Repair Stations . | . . . Recycling Units . | . . . Scanalyzers . | . . . Garrison Access . | . . . Data Cores Recovered . | . . . Used . | . . . Hacking Detections 1 | . 1 . Full Trace Events . | . . . Feedback Events . | . . . Feedback Blocked . | . . . Robot Schematics Acquired . | . . . Robots Built . | . . . Authchips . | . . . Time . | . . . Total Robot Build Rating . | . . . Part Schematics Acquired . | . . . Parts Built . | . . . Authchips . | . . . Time . | . . . Total Part Build Rating . | . . . Parts Repaired 1 | . 1 . Time 26 | . 26 . Parts Recycled . | . . . Recycled Matter . | . . . Retrieved Matter . | . . . Retrieved Components . | . . . Parts Scanalyzed . | . . . Part Schematics Acquired . | . . . Parts Damaged . | . . . Bothacking | -11 -10 -10 ------------ Run | Yrd Mat Sub Used RIF Installer . | . . . Robots Hacked . | . . . Non-combat . | . . . Combat . | . . . Robot Hacks Applied . | . . . Relay Couplers Released . | . . . Fabnet Peak Effective % . | . . . Robots Rewired . | . . . Allies Hacked . | . . . Hacks Repelled . | . . . Allies | -11 -10 -10 -------- Run | Yrd Mat Sub Total Allies . | . . . Largest Group . | . . . Highest-Rated Group . | . . . Highest-Rated Ally . | . . . Total Orders . | . . . Ally Attacks . | . . . Total Damage . | . . . Kills . | . . . Allies Corrupted . | . . . Allies Melted . | . . . Intel | -11 -10 -10 ------- Run | Yrd Mat Sub Active Infowar (turns) 723 | . 84 639 Structural 587 | . 84 503 Seismic 136 | . . 136 Robot Analysis Total . | . . . Derelict Logs Recovered 1 | . . 1 Drone Launches . | . . . Drone Recoveries . | . . . Exploration | -11 -10 -10 ------------- Run | Yrd Mat Sub Turns Passed 1004 | 65 300 639 Spaces Moved 620 | 50 177 393 Core 15 | 15 . . Treads . | . . . Legs 605 | 35 177 393 Wheels . | . . . Hover . | . . . Flight . | . . . Fastest Speed 50 | 50 120 120 Average Speed 118 | 99 120 120 Slowest Speed 190 | 120 120 190 Overloaded Moves . | . . . Propulsion Burnouts . | . . . Robots Hopped . | . . . Potential Cave-ins . | . . . Cave-ins Triggered . | . . . Exploration Rate (%) 19 | 3 29 26 Regions Visited 2 Branch Regions 1 Pre-discovered Areas . | . . . Known Exits Taken . | . . . Unknown Exits Taken 2 | 1 1 . Scrap Searched . | . . . Spaces Dug . | . . . Terrain Destroyed 9 | . . 9 Melee . | . . . Projectile . | . . . AOE 9 | . . 9 Terrain Rammed . | . . . Walls Destroyed . | . . . Machines Disabled . | . . . Actions | -11 -10 -10 --------- Run | Yrd Mat Sub Total 768 | 65 232 471 Wait 25 | . 22 3 Move 618 | 49 176 393 Hop . | . . . Pick Up 30 | 10 9 11 Fast Attach . | . . . Attach 12 | 6 2 4 Detach . | . . . Swap 9 | . 2 7 Drop 12 | . 3 9 Fire 62 | . 18 44 Melee . | . . . Ram . | . . . Kick . | . . . Crush . | . . . Escape Stasis . | . . . Rewire . | . . . Trap . | . . . Miscellaneous . | . . . Route ------- -11/Scrapyard -10/Materials (discovered 2 exits: [*Min] / [*Sub]) -10/Subcaves History --------- Turn | Location | Event 4 | -11/Scrapyard | Discovered new exit (range 16) 66 | -11/Scrapyard | Entered Materials 294 | -10/Materials | Repaired Assault Rifle 335 | -10/Materials | Discovered new exit (range 14) 340 | -10/Materials | Build established: Mutant 340 | -10/Materials | Discovered new exit (range 6) 366 | -10/Materials | Entered Subcaves 367 | -10/Subcaves | Approached by a straggling Scientist 579 | -10/Subcaves | Learned Materials trap positions 589 | -10/Subcaves | Ambushed by Subdwellers from Twisted Machinery 813 | -10/Subcaves | Ambushed by swarm of Subdwellers 821 | -10/Subcaves | Ambushed by Subdwellers from Twisted Machinery 822 | -10/Subcaves | Core integrity fell below 50% 856 | -10/Subcaves | Destroyed 8 combat bots 935 | -10/Subcaves | Shifting Twisted Machinery released Battle Cannon 936 | -10/Subcaves | Shifting Twisted Machinery released Sub. Power Source 992 | -10/Subcaves | Core integrity fell below 20% 1005 | -10/Subcaves | Destroyed by G-47 Trooper with Particle Gun Last Messages --------------- 00828_ W0-W83(R) destroyed. 00829_ Grenade Launcher destroyed. 00835_ 8N-L6D(R) destroyed. 00838_ Acquired 9 matter. 00839_ Acquired 7 matter. 00840_ Acquired 55 matter. 00843_ Acquired Sub. Machine Gun. 00868_ Acquired Seismic Detector. 00879_ Acquired 10 matter. Battle Cannon falls loose from the Twisted Machinery. Sub. Power Source falls loose from the Twisted Machinery. 00948_ Dropped Structural Scanner. 00949_ Acquired Battle Cannon. 00975_ Lgt. Ion Engine destroyed. 00986_ Dropped Aluminum Leg. 00986_ Acquired Sub. Power Source. 00995_ G-34 Mercenary destroyed. 01002_ Ion Engine fries itself beyond repair. Map ----- +----------------------------------------------------+ | | | | | | | | | | | | | ?????????????????????????????????????????????????? | | ?????????????????????????????????????????????????? | | ?????????????????????????????????????????????????? | | ?????????????????????????????????????????????????? | | ?????????????????????????????????????????????????? | | ?????????????????????????????????????????????????? | | ?????????????????????????????????????????????????? | | ?????????????????????????????????????????????????? | | ?????????????????????????????????????????????????? | | ?????????????????????????????????????????????????? | | ?????????????????????????????????????????????????? | | ?????????????????????????????????????????????????? | | ?????????????????????????????????????????????????? | | ?????????????????????????????????????????????????? | | ????????????????????????????####?????????#####???? | | ???????????????????????????## ####?????## ##??? | | ????????# #????????######### ####### #??? | | ????????# ##### # ## ### ## # ##?? | | ????????# [% ## ## ##? | | ????????# g @### ### ## | | ???????# #### ## ! # ##?# | | ??????# ## #####???# " ## #??## | | ???????????##??????????# " "## ### #???# | | ???????????????????????# " =### ##?###???## | | ???????????????????????#######?#"##?????????## | | ???????????????????????????????###???????????# | | ?????????????????????????????????????????????# | | ?????????????????????????????????????????????# | | ?????????????????????????????????????????????# | | ?????????????????????????????????????????????# | | ?????????????????????????????????????????????## | | ??????????????????????????????????????????????# | | ??????????????????????????????????????????????# | | ??????????????????????????????????????????????#### | | ????????????????????????????????????????????????## | | ????????????????????????????????????????????????# | | ????????????????????????????????????????????????# | | ????????????????????????????????????????????????# | | ????????????????????????????????????????????????# | | ????????????????????????????????????????????????## | | ?????????????????????????????????????????????????# | | ?????????????????????????????????????????????????? | | ?????????????????????????????????????????????????# | | ?????????????????????????????????????????????????# | +----------------------------------------------------+ Best States ------------- Heat Dissipation 25 Energy Generation 15 Energy Capacity 250 Matter Stores 300 Matter Capacity 300 Sight Range 16 Terrain Scan Density 10 Evasion (%) 55 Item Schematics ----------------- None Robot Schematics ------------------ None Fabricated ------------ Nothing Repaired ---------- Assault Rifle | 14% | -10/Materials Alien Tech Used ----------------- None Achievements -------------- None Challenges ------------ None Game ------ Seed EfficiencyBiometalTrap Manual? 0 Play Time 00:25:13 Cumulative 13.8 hours Start 2025.08.07 @ 20:06:22 End 2025.08.07 @ 20:38:44 Sessions 1 Manual Loads 0 Difficulty Rogue Special Mode None Game No. 13 Rogue 13 Adventurer 0 Explorer 0 Win Type - Total 0 Types 0/0/0/0/0/0/0/0/0/0 Lore% 8 Gallery% 18 Achievement% 16 Wizard Run 0 Options --------- Layout 1 ASCII 0 Keyboard 0 Movement Numpad Keybinds 0 Fullscreen 1 Font 32/SmallcapsGlow Map View 50x35 Zoom Use 0% Tactical HUD 1 Map Filters NONE Filters NONE Steam 1 RUN: 2f71bb15-3b67-4300-aadf-b93a17fa787e